{"text_format":"1","workbook":"xlsx","n_sheets":2,"sheets":["Лист1","Лист2"],"not_rendered":{"charts":0,"images":0,"macros":0,"external_links":0,"defined_names":0,"comments":0,"pivot_tables":0},"unopened":[],"bounds":{"document_bytes":16777216,"sheet_cells":100000,"rows_first":2000,"rows_last":500,"rows_between":2000,"halvings":0,"cell_chars":16384,"cell_head_chars":4096},"cells_cut":0,"cells_raw":0,"read":"whole","date_system":"1900"}

{"sheet":"Лист1","index":0,"n_rows":20,"n_cols":1,"rows_kept":20,"cut":false,"hidden":false,"merged":[]}
[{"$f":"HYPERLINK(Лист2!A1,CELL(\"адрес\",Лист2!A1))","v":"[Книга2]Лист2!$A$1"}]
[{"$f":"HYPERLINK(Лист2!A2,CELL(\"адрес\",Лист2!A2))","v":"[Книга2]Лист2!$A$2"}]
[{"$f":"HYPERLINK(Лист2!A3,CELL(\"адрес\",Лист2!A3))","v":"[Книга2]Лист2!$A$3"}]
[{"$f":"HYPERLINK(Лист2!A4,CELL(\"адрес\",Лист2!A4))","v":"[Книга2]Лист2!$A$4"}]
[{"$f":"HYPERLINK(Лист2!A5,CELL(\"адрес\",Лист2!A5))","v":"[Книга2]Лист2!$A$5"}]
[{"$f":"HYPERLINK(Лист2!A6,CELL(\"адрес\",Лист2!A6))","v":"[Книга2]Лист2!$A$6"}]
[{"$f":"HYPERLINK(Лист2!A7,CELL(\"адрес\",Лист2!A7))","v":"[Книга2]Лист2!$A$7"}]
[{"$f":"HYPERLINK(Лист2!A8,CELL(\"адрес\",Лист2!A8))","v":"[Книга2]Лист2!$A$8"}]
[{"$f":"HYPERLINK(Лист2!A9,CELL(\"адрес\",Лист2!A9))","v":"[Книга2]Лист2!$A$9"}]
[{"$f":"HYPERLINK(Лист2!A10,CELL(\"адрес\",Лист2!A10))","v":"[Книга2]Лист2!$A$10"}]
[{"$f":"HYPERLINK(Лист2!A11,CELL(\"адрес\",Лист2!A11))","v":"[Книга2]Лист2!$A$11"}]
[{"$f":"HYPERLINK(Лист2!A12,CELL(\"адрес\",Лист2!A12))","v":"[Книга2]Лист2!$A$12"}]
[{"$f":"HYPERLINK(Лист2!A13,CELL(\"адрес\",Лист2!A13))","v":"[Книга2]Лист2!$A$13"}]
[{"$f":"HYPERLINK(Лист2!A14,CELL(\"адрес\",Лист2!A14))","v":"[Книга2]Лист2!$A$14"}]
[{"$f":"HYPERLINK(Лист2!A15,CELL(\"адрес\",Лист2!A15))","v":"[Книга2]Лист2!$A$15"}]
[{"$f":"HYPERLINK(Лист2!A16,CELL(\"адрес\",Лист2!A16))","v":"[Книга2]Лист2!$A$16"}]
[{"$f":"HYPERLINK(Лист2!A17,CELL(\"адрес\",Лист2!A17))","v":"[Книга2]Лист2!$A$17"}]
[{"$f":"HYPERLINK(Лист2!A18,CELL(\"адрес\",Лист2!A18))","v":"[Книга2]Лист2!$A$18"}]
[{"$f":"HYPERLINK(Лист2!A19,CELL(\"адрес\",Лист2!A19))","v":"[Книга2]Лист2!$A$19"}]
[{"$f":"HYPERLINK(Лист2!A20,CELL(\"адрес\",Лист2!A20))","v":"[Книга2]Лист2!$A$20"}]

{"sheet":"Лист2","index":1,"n_rows":0,"n_cols":0,"rows_kept":0,"cut":false,"hidden":false,"merged":[]}